bitfinex/quotes_SOLUSD_20250929
["timestamp","ask_amount","ask_price","bid_price","bid_amount"]
[1759158789969,26.0,212.45,212.42,13.59559401]
[1759158790179,26.0,212.45,212.42,92.89559401]
[1759158790384,29.63,212.46,212.42,92.89559401]
[1759158790681,0.67,212.45,212.42,92.89559401]
[1759158791057,28.96,212.46,212.42,92.89559401]
[1759158791270,26.0,212.43,212.42,92.89559401]
[1759158791781,26.67,212.43,212.42,92.89559401]
[1759158793192,0.67,212.43,212.31,13.59559401]
[1759158793363,38.04,212.45,212.31,13.59559401]
[1759158793364,0.67,212.42,212.31,92.89559401]
[1759158793559,0.67,212.41,212.31,92.89559401]
[1759158793761,38.71,212.4,212.31,93.18559401]
[1759158793964,0.69,212.39,212.31,93.18559401]
[1759158794324,0.69,212.39,212.31,97.89568774]
[1759158794585,0.69,212.39,212.31,97.60568774]
[1759158794787,5.38763695,212.44,212.31,13.59559401]
[1759158794788,20.21,212.38,212.31,13.59559401]
[1759158794971,36.01,212.37,212.27,0.29]
[1759158795173,0.69,212.37,212.27,0.29]
[1759158795481,0.69,212.37,212.27,27.93235741]
[1759158795685,0.69,212.36,212.26,13.59559401]
[1759158795882,9.25,212.35,212.26,13.59559401]
[1759158796068,0.69,212.34,212.25,13.59559401]
[1759158796267,0.69,212.33,212.25,13.59559401]
[1759158796475,0.69,212.32,212.24,13.79559401]
[1759158796779,0.69,212.31,212.24,18.50722163]
[1759158796981,26.0,212.32,212.24,18.50722163]
[1759158797280,26.0,212.3,212.25,0.29]
[1759158797683,26.0,212.3,212.24,44.70158794]
[1759158797684,26.0,212.3,212.26,0.29]
[1759158798080,26.69,212.3,212.24,44.70158794]
[1759158798404,26.69,212.3,212.24,18.50722163]
[1759158798799,26.0,212.3,212.24,18.50722163]
[1759158798979,26.0,212.29,212.24,18.79722163]
[1759158799488,26.69,212.29,212.24,18.50722163]
[1759158799900,38.02,212.3,212.24,18.50722163]
[1759158800079,38.02,212.3,212.24,18.79722163]
[1759158800400,38.71,212.31,212.3,92.89559401]
[1759158800599,38.71,212.31,212.3,13.59559401]
[1759158800796,0.69,212.31,212.3,13.59559401]
[1759158800984,38.71,212.31,212.3,13.59559401]
[1759158804201,38.71,212.31,212.25,13.59559401]
[1759158804387,0.66,212.3,212.25,92.89559401]
[1759158804592,38.02,212.29,212.25,92.89559401]
[1759158804904,38.02,212.28,212.25,92.89559401]
[1759158805077,38.02,212.28,212.25,97.60698967]
[1759158806198,38.02,212.28,212.25,92.89559401]
[1759158806503,5.38763695,212.33,212.25,92.89559401]
[1759158806703,38.02,212.29,212.25,92.89559401]
[1759158806900,26.0,212.26,212.25,92.89559401]
[1759158807099,38.68,212.29,212.27,13.59559401]
[1759158807302,0.66,212.28,212.27,13.59559401]
[1759158807907,38.68,212.28,212.27,13.59559401]
[1759158809011,64.68,212.28,212.27,13.59559401]
[1759158810019,64.02,212.28,212.27,66.89559401]
[1759158810406,64.68,212.28,212.27,66.89559401]
[1759158813202,26.0,212.28,212.27,66.89559401]
[1759158813409,0.66,212.33,212.27,66.89559401]
[1759158813613,32.76,212.32,212.27,206.3065753]
[1759158813921,33.42,212.32,212.27,206.3065753]
[1759158814319,0.66,212.36,212.28,0.29]
[1759158814619,0.66,212.38,212.28,0.29]
[1759158814802,0.66,212.38,212.3,13.59559401]
[1759158815119,32.94,212.37,212.3,13.59559401]
[1759158815525,38.0,212.36,212.3,13.59559401]
[1759158816321,0.66,212.36,212.3,13.59559401]
[1759158816518,38.0,212.35,212.3,13.59559401]
[1759158816706,38.66,212.35,212.3,13.59559401]
[1759158816899,38.66,212.35,212.32,13.59559401]
[1759158817303,0.66,212.35,212.32,13.59559401]
[1759158817904,38.0,212.35,212.32,13.59559401]
[1759158818222,38.0,212.36,212.32,66.89559401]
[1759158818399,26.66,212.37,212.32,66.89559401]
[1759158818607,0.66,212.39,212.32,201.88559401]
[1759158818915,26.0,212.35,212.34,13.59559401]
[1759158819117,26.0,212.35,212.34,66.89559401]
[1759158819501,0.66,212.39,212.34,66.89559401]
[1759158819701,26.0,212.35,212.34,66.89559401]
[1759158823005,26.0,212.35,212.34,71.60502228]
[1759158823211,26.0,212.35,212.34,18.30502228]
[1759158823410,38.66,212.38,212.34,18.30502228]
[1759158823411,0.66,212.38,212.34,18.30502228]
[1759158823930,37.98,212.37,212.34,18.30502228]
[1759158825130,0.66,212.4,212.34,18.30502228]
[1759158825328,5.39213757,212.44,212.34,109.66859296]
[1759158825329,0.66,212.42,212.34,109.66859296]
[1759158825523,0.66,212.43,212.35,0.29]
[1759158825723,38.62,212.43,212.35,0.29]
[1759158826315,38.62,212.43,212.37,13.59559401]
[1759158826617,0.66,212.42,212.37,13.59559401]
[1759158827712,26.0,212.4,212.37,13.59559401]
[1759158828331,26.0,212.4,212.39,13.59559401]
[1759158828637,37.96,212.43,212.39,13.59559401]
[1759158828638,37.96,212.43,212.42,63.09435763]
[1759158829425,46.00150764,212.43,212.38,49.49876362]
[1759158829632,8.04150764,212.39,212.35,13.59559401]
[1759158829832,37.96,212.38,212.35,13.59559401]
[1759158830430,26.0,212.36,212.35,13.59559401]
[1759158830839,63.94,212.36,212.35,13.59559401]
[1759158831640,64.65,212.36,212.35,13.59559401]
[1759158832628,64.65,212.36,212.35,63.09435763]
[1759158833834,63.94,212.36,212.35,63.09435763]
[1759158834221,26.0,212.36,212.35,63.09435763]
[1759158834433,63.94,212.36,212.35,63.09435763]
[1759158835134,37.94,212.37,212.35,68.48356412]
[1759158835341,37.94,212.38,212.35,67.80356412]
[1759158835527,0.71,212.4,212.35,67.80356412]
[1759158835724,37.94,212.38,212.35,63.09435763]
[1759158835926,0.71,212.37,212.35,63.09435763]
[1759158836135,37.94,212.39,212.38,24.44435763]
[1759158838238,37.92,212.39,212.38,24.44435763]
[1759158840228,38.63,212.39,212.38,24.44435763]
[1759158840626,41.79848738,212.39,212.38,24.44435763]
[1759158840825,0.71,212.39,212.38,10.84876362]
[1759158841028,41.79848738,212.39,212.38,10.84876362]
[1759158844446,38.63,212.39,212.38,10.84876362]
[1759158844647,41.79848738,212.39,212.38,10.84876362]
[1759158844832,38.63,212.39,212.38,10.84876362]
[1759158845034,41.79848738,212.39,212.34,10.84876362]
[1759158845233,4.13145824,212.38,212.34,10.84876362]
[1759158846032,3.16848738,212.37,212.34,10.84876362]
[1759158846339,41.06848738,212.36,212.34,10.84876362]
[1759158846648,7.29994562,212.35,212.34,10.84876362]
[1759158847028,7.29994562,212.35,212.24,11.04876362]
[1759158847347,3.42145824,212.27,212.24,0.2]
[1759158847555,37.9,212.26,212.24,0.2]
[1759158847722,38.61,212.26,212.24,0.2]
[1759158848031,37.9,212.26,212.25,0.68]
[1759158848222,38.61,212.26,212.25,13.59559401]
[1759158848423,37.9,212.26,212.24,0.2]
[1759158850050,0.71,212.25,212.24,0.2]
[1759158851834,4.52506421,212.25,212.24,0.2]
[1759158852156,7.69355159,212.25,212.24,0.2]
[1759158853550,42.42506421,212.25,212.24,0.2]
[1759158853756,45.59355159,212.25,212.24,0.2]
[1759158854245,53.65450726,212.25,212.24,0.2]
[1759158854441,15.75450726,212.25,212.24,0.2]
[1759158854639,12.58601988,212.25,212.24,0.2]
[1759158854850,50.48601988,212.25,212.24,0.2]
[1759158855152,53.65450726,212.25,212.24,0.2]
[1759158856246,66.42688813,212.25,212.24,0.2]
[1759158856555,23.81546293,212.25,212.24,0.2]
[1759158856761,58.36593246,212.25,212.24,0.2]
[1759158857846,20.46593246,212.25,212.24,0.2]
[1759158858049,55.19744508,212.25,212.24,0.2]
[1759158858346,66.42688813,212.25,212.24,0.2]
[1759158858543,62.61182392,212.25,212.24,0.2]
[1759158858956,20.0,212.23,212.19,0.1]
[1759158859157,13.59559401,212.19,212.07,0.1]
[1759158859456,8.06095567,212.08,212.07,0.1]
[1759158859659,45.94095567,212.08,212.07,0.1]
[1759158860966,46.60095567,212.08,212.07,0.1]
[1759158861260,45.94095567,212.08,212.07,0.1]
[1759158861848,8.06095567,212.08,212.07,0.1]
[1759158862052,45.96095567,212.08,212.07,0.1]
[1759158862265,46.67095567,212.08,212.05,0.1]
[1759158862566,0.71,212.13,212.06,0.65]
[1759158862739,8.06095567,212.1,212.06,0.65]
[1759158862936,8.06095567,212.07,212.05,0.1]
[1759158863343,37.9,212.06,212.05,0.75]
[1759158863941,8.06095567,212.07,212.05,0.75]
[1759158864468,37.9,212.06,212.05,0.75]
[1759158865046,8.06095567,212.07,212.05,0.1]
[1759158865240,37.9,212.06,212.05,0.1]
[1759158867446,8.06095567,212.07,212.05,0.1]
[1759158867653,37.9,212.06,212.05,0.1]
[1759158868558,0.71,212.06,212.05,0.1]
[1759158868760,38.61,212.06,212.05,0.1]
[1759158869070,37.9,212.06,212.05,0.1]
[1759158869403,8.06095567,212.05,211.95,0.65]
[1759158869553,8.06095567,211.96,211.95,0.65]
[1759158869743,45.96095567,211.96,211.95,0.65]
[1759158870752,37.9,211.96,211.95,0.65]
[1759158871047,8.06095567,211.96,211.95,0.65]
[1759158871248,45.96095567,211.96,211.95,0.65]
[1759158872256,45.96095567,211.96,211.94,13.59559401]
[1759158872463,45.96095567,211.96,211.95,0.65]
[1759158873250,37.9,211.96,211.95,0.65]
[1759158873449,45.96095567,211.96,211.95,0.65]
[1759158873656,8.06095567,211.96,211.95,0.65]
[1759158873859,8.06095567,211.99,211.96,13.59559401]
[1759158874153,8.06095567,211.99,211.97,0.65]
[1759158874154,37.9,211.98,211.97,0.65]
[1759158874353,41.33599376,211.98,211.97,0.65]
[1759158875664,3.43599376,211.98,211.97,0.65]
[1759158875865,37.9,211.99,211.97,0.65]
[1759158876173,3.43599376,212.05,211.98,13.59559401]
[1759158876368,37.9,212.04,211.99,0.65]
[1759158876569,37.9,212.04,212.0,0.65]
[1759158876768,41.33599376,212.04,212.01,0.65]
[1759158877066,26.0,212.02,212.01,0.65]
[1759158877557,0.71,212.08,212.01,0.65]
[1759158877558,3.43599376,212.08,212.01,0.65]
[1759158877755,37.9,212.07,212.01,0.65]
[1759158877955,26.0,212.04,212.01,0.65]
[1759158879351,26.0,212.04,212.02,13.59559401]
[1759158879552,26.0,212.04,212.03,14.24559401]
[1759158881079,3.73811548,212.09,212.03,14.24559401]
[1759158881280,26.0,212.05,212.03,14.24559401]
[1759158881484,26.0,212.04,212.03,13.59559401]
[1759158881978,26.0,212.04,212.03,14.24559401]
[1759158887666,0.71,212.13,212.04,13.59559401]
[1759158887982,26.0,212.09,212.06,13.59559401]
[1759158888160,26.0,212.09,212.07,0.65]
[1759158888563,0.71,212.15,212.07,0.65]
[1759158888564,2.1967406,212.16,212.08,13.59559401]
[1759158888768,40.0767406,212.16,212.09,0.65]
[1759158888971,40.0767406,212.16,212.1,13.59559401]
[1759158889285,40.0767406,212.16,212.03,16.50706431]
[1759158889286,2.1967406,212.18,212.12,13.59559401]
[1759158889495,26.0,212.16,212.13,0.65]
[1759158889791,3.1352629,212.18,212.14,13.59559401]
[1759158889993,2.1967406,212.21,212.12,4.71431253]
[1759158889994,26.0,212.19,212.16,13.59559401]
[1759158890161,5.3320035,212.21,212.17,0.65]
[1759158890360,2.1967406,212.21,212.18,0.65]
[1759158890592,26.0,212.19,212.13,13.59559401]
[1759158890800,2.1967406,212.18,212.13,0.65]
[1759158891178,2.8967406,212.18,212.13,0.65]
[1759158891565,2.1967406,212.18,212.14,0.68]
[1759158891772,26.0,212.17,212.14,0.68]
[1759158892473,26.0,212.17,212.13,13.59559401]
[1759158892671,26.0,212.17,212.13,0.68]
[1759158892874,26.0,212.17,212.08,18.31067873]
[1759158893071,26.0,212.17,212.1,13.59559401]
[1759158893271,26.0,212.17,212.11,0.68]
[1759158893475,26.0,212.16,212.11,0.68]
[1759158893677,26.0,212.16,212.12,14.27559401]
[1759158893875,28.8967406,212.19,212.12,14.27559401]
[1759158894086,26.0,212.16,212.12,93.57559401]
[1759158895578,26.0,212.16,212.12,92.89559401]
[1759158896064,3.1352629,212.17,212.12,92.89559401]
[1759158896273,3.1352629,212.17,212.12,79.3]
[1759158896598,3.1352629,212.16,212.13,0.68]
[1759158896768,3.1352629,212.17,212.14,0.68]
[1759158896978,3.1352629,212.16,212.14,0.68]
[1759158897292,3.1352629,212.17,212.13,79.3]
[1759158897497,3.1352629,212.16,212.13,79.98]
[1759158897668,3.1352629,212.17,212.14,0.68]
[1759158897867,3.1352629,212.17,212.15,0.68]
[1759158898081,26.0,212.18,212.15,0.68]
[1759158898285,29.1352629,212.18,212.15,0.68]
[1759158898484,26.0,212.18,212.15,0.68]
[1759158898688,29.1352629,212.18,212.15,0.68]
[1759158898889,26.0,212.18,212.15,0.68]
[1759158899097,29.1352629,212.18,212.15,0.68]
[1759158899378,26.0,212.18,212.15,0.68]
[1759158899601,29.1352629,212.18,212.15,0.68]
[1759158899812,26.0,212.18,212.15,0.68]
[1759158900008,29.1352629,212.18,212.15,0.68]
[1759158900188,26.0,212.18,212.15,0.68]
[1759158900394,3.1352629,212.17,212.15,0.68]
[1759158900711,3.1352629,212.17,212.13,79.3]
[1759158900878,3.1352629,212.17,212.1,79.3]
[1759158900879,28.1967406,212.14,212.1,79.3]
[1759158901196,2.1967406,212.11,212.06,79.98]
[1759158901521,2.1967406,212.11,212.07,0.68]
[1759158901690,3.1352629,212.12,212.08,13.59559401]
[1759158902008,3.1352629,212.13,212.09,0.68]
[1759158902178,3.1352629,212.12,212.07,13.59559401]
[1759158902378,5.3320035,212.14,212.09,0.68]
[1759158902580,5.3320035,212.14,212.1,0.68]
[1759158902802,2.1967406,212.14,212.11,0.68]
[1759158902996,2.1967406,212.14,212.11,79.98]
[1759158903677,3.1352629,212.15,212.11,79.3]
[1759158903888,3.1352629,212.15,212.12,0.68]
[1759158903889,26.0,212.13,212.12,0.68]
[1759158904091,26.0,212.13,212.11,79.3]
[1759158904291,26.0,212.13,212.11,79.98]
[1759158905697,26.0,212.13,212.12,0.68]
[1759158905996,26.0,212.13,212.11,79.3]
[1759158906181,26.0,212.13,212.12,0.68]
[1759158906381,3.1352629,212.15,212.12,214.68]
[1759158906574,26.0,212.14,212.13,0.68]
[1759158906777,4.42422549,212.23,212.14,13.59559401]
[1759158907072,26.0,212.2,212.15,0.68]
[1759158907276,26.0,212.2,212.16,0.68]
[1759158907474,5.35594413,212.22,212.16,0.68]
[1759158907697,26.0,212.2,212.16,0.68]
[1759158907903,26.0,212.2,212.17,14.27559401]
[1759158908213,3.15920353,212.22,212.19,13.59559401]
[1759158908372,3.15602893,212.25,212.2,0.68]
[1759158908579,26.0,212.23,212.2,0.68]
[1759158908780,26.0,212.23,212.22,13.59559401]
[1759158909285,26.0,212.25,212.22,0.68]
[1759158909504,2.3967406,212.26,212.22,0.68]
[1759158910010,26.0,212.25,212.22,0.68]
[1759158910209,0.2,212.26,212.23,0.68]
[1759158910400,0.9,212.26,212.21,13.59559401]
[1759158910706,0.9,212.26,212.21,14.27559401]
[1759158910888,0.2,212.26,212.22,0.68]
[1759158911091,0.2,212.26,212.22,79.98]
[1759158911408,0.2,212.26,212.24,13.59559401]
[1759158911773,5.42,212.37,212.28,13.59559401]
[1759158911978,28.1967406,212.34,212.28,13.59559401]
[1759158912178,28.1967406,212.34,212.28,51.41559401]
[1759158912378,2.1967406,212.34,212.28,13.59559401]
[1759158912615,28.1967406,212.34,212.28,13.59559401]
[1759158912907,2.1967406,212.34,212.28,13.59559401]
[1759158913116,28.1967406,212.31,212.23,0.68]
[1759158913276,2.1967406,212.28,212.24,13.59559401]
[1759158913479,2.8967406,212.28,212.23,13.59559401]
[1759158913690,2.8967406,212.28,212.23,14.29559401]
[1759158913982,2.1967406,212.28,212.25,13.59559401]
[1759158914182,2.1967406,212.28,212.26,0.7]
[1759158914391,2.1967406,212.28,212.25,13.59559401]
[1759158914797,2.1967406,212.31,212.25,14.29559401]
[1759158915018,2.8567406,212.31,212.25,14.29559401]
[1759158916016,0.66,212.31,212.25,14.29559401]
[1759158916198,2.8567406,212.31,212.25,14.29559401]
[1759158916399,2.1967406,212.31,212.25,14.29559401]
[1759158917110,2.1967406,212.31,212.25,19.00701754]
[1759158917291,2.1967406,212.31,212.25,14.29559401]
[1759158918399,26.0,212.32,212.27,13.59559401]
[1759158918589,26.0,212.32,212.28,0.7]
[1759158918790,2.1967406,212.36,212.28,214.0]
[1759158919012,0.66,212.32,212.28,214.0]
[1759158919222,0.66,212.31,212.28,214.0]
[1759158920512,0.66,212.3,212.28,214.0]
[1759158920711,28.1967406,212.3,212.28,214.0]
[1759158920885,28.8567406,212.3,212.28,214.0]
[1759158921290,2.8567406,212.3,212.28,214.0]
[1759158921818,26.0,212.34,212.28,214.0]
[1759158922027,2.1967406,212.31,212.28,214.69]
[1759158922224,2.1967406,212.31,212.28,79.99]
[1759158922401,2.1967406,212.31,212.28,79.3]
[1759158922600,2.1967406,212.32,212.28,79.99]
[1759158922822,0.66,212.31,212.28,79.3]
[1759158924417,28.1967406,212.29,212.28,79.3]
[1759158925419,26.0,212.29,212.28,79.3]
[1759158926193,3.14120654,212.31,212.28,79.3]
[1759158926399,26.0,212.29,212.28,79.3]
[1759158928124,5.99794714,212.32,212.29,53.3]
[1759158928506,2.8567406,212.32,212.29,53.3]
[1759158928903,2.1967406,212.32,212.3,0.69]
[1759158929303,2.1967406,212.32,212.29,53.3]
[1759158930199,26.0,212.31,212.29,53.3]
[1759158932321,26.66,212.3,212.29,53.3]
[1759158932520,29.80120654,212.3,212.29,53.3]
[1759158932821,0.66,212.3,212.29,53.3]
[1759158933025,64.42,212.3,212.29,53.3]
[1759158933206,67.56120654,212.3,212.29,53.3]
[1759158933406,72.27152213,212.3,212.29,53.3]
[1759158934720,72.27152213,212.3,212.25,53.3]
[1759158934915,2.1967406,212.26,212.25,53.3]
[1759158935119,40.5967406,212.26,212.25,53.3]
[1759158935727,29.81276631,212.29,212.25,53.3]
[1759158935927,39.9367406,212.26,212.25,53.3]
[1759158936227,40.5967406,212.26,212.25,53.3]
[1759158936814,38.4,212.26,212.25,53.3]
[1759158937111,39.9367406,212.26,212.25,53.3]
[1759158937516,43.08950691,212.26,212.25,53.3]
[1759158937712,39.9367406,212.26,212.25,53.3]
[1759158938904,2.1967406,212.26,212.25,53.3]
[1759158939115,39.9367406,212.26,212.25,53.3]
[1759158939311,26.0,212.23,212.22,53.99]
[1759158939518,66.5967406,212.23,212.13,53.3]
[1759158939724,2.1967406,212.14,212.13,53.3]
[1759158940025,2.1967406,212.14,212.13,53.99]
[1759158940405,2.1967406,212.14,212.13,0.69]
[1759158941130,2.1967406,212.14,212.09,13.59559401]
[1759158941333,2.1967406,212.14,212.13,0.69]
[1759158941634,2.1967406,212.14,212.1,0.69]
[1759158941635,26.0,212.12,212.1,0.69]
[1759158942009,28.1967406,212.11,212.09,53.3]
[1759158943131,65.9367406,212.11,212.09,53.3]
[1759158944223,0.66,212.1,212.09,53.3]
[1759158944445,65.9367406,212.11,212.09,53.3]
[1759158944627,65.9367406,212.11,212.06,14.28559401]
[1759158944933,65.9367406,212.11,212.07,0.69]
[1759158945406,65.9367406,212.11,212.08,0.69]
[1759158945603,0.66,212.15,212.09,0.69]
[1759158945812,26.0,212.11,212.09,0.69]
[1759158946011,26.0,212.11,212.06,66.89559401]
[1759158946213,26.0,212.11,212.07,0.69]
[1759158946522,26.0,212.09,212.08,0.69]
[1759158947448,26.0,212.15,212.08,0.69]
[1759158947625,2.1967406,212.14,212.08,0.69]
[1759158947933,26.0,212.11,212.09,13.59559401]
[1759158948136,2.1967406,212.14,212.1,0.69]
[1759158948307,3.15518421,212.14,212.1,0.69]
[1759158948503,26.0,212.12,212.11,13.59559401]
[1759158948726,26.0,212.12,212.11,14.28559401]
[1759158949640,26.0,212.14,212.11,14.28559401]
[1759158949935,26.0,212.14,212.11,13.59559401]
[1759158950231,26.0,212.14,212.1,53.3]
[1759158950408,26.0,212.11,212.1,53.3]
[1759158951315,7.15706382,212.19,212.1,66.89559401]
[1759158951520,29.42991276,212.15,212.1,14.26559401]
[1759158951721,3.42991276,212.13,212.07,0.67]
[1759158951924,26.0,212.11,212.07,53.97]
[1759158952126,26.0,212.1,212.07,53.97]
[1759158952327,26.0,212.1,212.08,0.67]
[1759158952648,26.0,212.1,212.09,14.26559401]
[1759158952812,26.0,212.12,212.1,13.59559401]
[1759158953009,26.0,212.12,212.09,0.67]
[1759158953653,26.0,212.12,212.08,13.59559401]
[1759158953840,26.0,212.12,212.09,188.0]
[1759158954021,26.0,212.12,212.09,188.67]
[1759158954332,26.0,212.12,212.09,53.3]
[1759158954333,0.71,212.11,212.09,53.3]
[1759158954533,41.87991276,212.11,212.09,53.3]
[1759158954720,26.0,212.08,212.04,53.4]
[1759158954917,26.0,212.05,212.04,53.4]
[1759158955421,26.0,212.09,212.04,54.07]
[1759158955624,26.0,212.05,212.04,53.4]
[1759158956226,26.0,212.05,212.04,54.07]
[1759158958247,26.0,212.05,212.04,53.4]
[1759158958745,26.0,212.05,212.04,54.07]
[1759158959643,3.42991276,212.08,212.04,67.66559401]
[1759158959833,26.0,212.05,212.04,67.66559401]
[1759158961558,26.0,212.05,212.04,53.4]
[1759158962257,0.71,212.09,212.04,66.99559401]
[1759158962546,26.0,212.05,212.04,53.4]
[1759158966452,41.85991276,212.05,212.04,53.4]
[1759158968524,41.85991276,212.05,212.04,0.1]
[1759158968727,45.00805268,212.05,212.04,0.1]
[1759158969028,46.57578165,212.05,212.04,0.1]
[1759158969231,49.72392157,212.05,212.04,0.1]
[1759158972130,45.00805268,212.05,212.04,0.1]
[1759158972333,55.76797754,212.05,212.04,0.1]
[1759158972551,58.91611746,212.05,212.04,0.1]
[1759158973149,63.63198635,212.05,212.04,0.1]
[1759158973340,45.00805268,212.05,212.04,0.1]
[1759158973746,41.85991276,212.05,212.04,0.1]
[1759158974137,45.00805268,212.05,212.04,0.1]
[1759158974536,41.14991276,212.05,212.04,0.1]
[1759158974854,41.84991276,212.05,212.04,0.1]
[1759158975357,49.71392157,212.05,212.04,0.1]
[1759158977941,63.30951558,212.05,212.04,0.1]
[1759158978140,26.0,212.02,211.89,53.3]
[1759158978364,3.42991276,211.96,211.93,0.72]
[1759158978546,37.72,211.95,211.93,54.02]
[1759158978928,37.72,211.95,211.93,53.3]
[1759158979469,3.42991276,211.94,211.93,53.3]
[1759158979632,67.14991276,211.95,211.93,54.02]
[1759158979964,37.72,211.94,211.93,54.02]
[1759158980137,37.72,211.94,211.93,53.3]
[1759158980543,26.0,211.91,211.87,0.1]
[1759158980736,37.72,211.9,211.87,54.12]
[1759158980949,37.72,211.9,211.88,0.72]
[1759158981532,37.72,211.9,211.87,53.4]
[1759158981533,3.42991276,211.89,211.87,53.4]
[1759158981738,37.72,211.88,211.87,53.4]
[1759158982244,37.72,211.88,211.87,54.09]
[1759158982653,3.42991276,211.93,211.87,54.09]
[1759158982853,26.0,211.89,211.88,0.69]
[1759158983137,26.0,211.88,211.87,0.1]
[1759158983460,64.44,211.88,211.87,0.1]
[1759158983764,67.59772917,211.88,211.87,0.1]
[1759158984154,3.15772917,211.88,211.87,0.1]
[1759158984470,37.72,211.88,211.87,0.79]
[1759158984767,40.87772917,211.9,211.87,5.50987539]
[1759158984938,3.15772917,211.95,211.88,0.69]
[1759158985138,37.72,211.94,211.88,0.69]
[1759158985465,37.72,211.93,211.89,4.71942989]
[1759158985641,37.72,211.93,211.9,0.69]
[1759158985849,40.87772917,211.93,211.9,0.69]
[1759158986252,40.87772917,211.93,211.91,0.69]
[1759158986573,40.87772917,211.93,211.92,0.69]
[1759158987866,3.15772917,211.93,211.92,0.69]
[1759158988164,37.72,211.94,211.92,53.99]
[1759158988470,40.87772917,211.94,211.93,0.69]
[1759158989250,40.87772917,211.94,211.92,53.3]
[1759158989456,44.30764193,211.94,211.92,53.3]
[1759158989666,44.30764193,211.94,211.92,53.99]
[1759158990170,44.30764193,211.94,211.92,53.3]
[1759158990585,0.72,211.93,211.92,53.3]
[1759158990786,26.0,211.91,211.87,53.4]
[1759158990951,41.12991276,211.9,211.87,54.09]
[1759158991152,44.28764193,211.9,211.87,53.4]
[1759158991485,37.7,211.89,211.88,0.69]
[1759158991673,37.7,211.89,211.87,53.4]
[1759158991868,44.28764193,211.9,211.87,58.1198153]
[1759158992072,41.12991276,211.9,211.87,58.1198153]
[1759158992385,3.42991276,211.9,211.88,0.69]
[1759158992559,41.12991276,211.9,211.89,0.69]
[1759158993153,41.12991276,211.9,211.87,54.09]
[1759158993371,41.12991276,211.9,211.87,53.4]
[1759158993600,41.12991276,211.9,211.88,0.69]
[1759158993781,41.12991276,211.9,211.89,0.69]
[1759158993981,26.0,211.9,211.89,0.69]
[1759158994501,37.7,211.91,211.89,0.69]
[1759158995195,40.85621026,211.93,211.89,0.69]
[1759158995373,40.85670532,211.93,211.89,0.69]
[1759158995574,40.85670532,211.93,211.89,5.40922727]
[1759158995769,3.42991276,211.97,211.9,0.69]
[1759158995974,3.42991276,211.99,211.91,13.59559401]
[1759158996184,3.42991276,211.99,211.92,0.69]
[1759158996599,3.42991276,211.99,211.92,147.83329468]
[1759158996791,3.42991276,211.99,211.93,0.69]
[1759158996792,26.0,211.97,211.93,0.69]
[1759158997095,3.42991276,211.96,211.92,147.14329468]
[1759158997271,26.0,211.97,211.93,0.69]
[1759158997471,29.42991276,211.97,211.94,0.69]
[1759158997789,29.42991276,211.97,211.95,5.40809389]
[1759158997985,29.42991276,211.97,211.95,13.13329468]
[1759158998188,3.42991276,211.97,211.95,13.13329468]
[1759158999395,3.42991276,211.97,211.95,12.44329468]
[1759159000073,26.0,211.99,211.95,12.44329468]